bitfinex-derivatives/quotes_SOLF0:USTF0_20251211
["timestamp","ask_amount","ask_price","bid_price","bid_amount"]
[1765412868538,3.18,136.1,136.07,72.1525]
[1765412869428,3.2352674,136.1,136.07,72.20516392]
[1765412870737,3.2352674,136.1,136.07,9.74516392]
[1765412871233,3.18,136.08,136.07,0.05266392]
[1765412871436,3.18,136.09,136.07,0.05266392]
[1765412872243,9.792,136.09,136.07,0.05266392]
[1765412872437,8.85498292,136.08,136.07,0.05266392]
[1765412875939,3.18,136.06,136.03,65.54]
[1765412876841,3.18,136.06,136.03,3.08]
[1765412877040,3.23525927,136.06,136.03,3.13019732]
[1765412879143,3.18,136.04,136.03,0.05019732]
[1765412880354,0.05525927,136.06,136.03,0.05019732]
[1765412880534,8.84431309,136.05,136.03,0.05019732]
[1765412880735,3.18,136.04,136.0,6.616]
[1765412880944,3.18,136.04,135.98,3.08]
[1765412881544,3.18,136.02,135.98,3.08]
[1765412881741,0.04794371,136.01,135.99,3.13242556]
[1765412882045,0.04794371,136.01,136.0,3.08]
[1765412882748,6.6128,136.08,136.02,3.08]
[1765412883050,8.83894535,136.07,136.02,3.08]
[1765412883244,3.18,136.07,136.02,3.08]
[1765412883845,0.0492409,136.06,136.03,3.12723094]
[1765412884150,0.0492409,136.06,136.04,3.08]
[1765412884951,0.0492409,136.06,136.04,9.6944]
[1765412885351,0.0492409,136.06,136.05,3.12]
[1765412885852,0.0492409,136.06,136.04,3.12]
[1765412886952,0.0492409,136.06,136.05,9.734]
[1765412895657,3.05,136.11,136.08,3.07]
[1765412896757,3.09715956,136.11,136.08,3.11956903]
[1765412896955,9.70825956,136.11,136.08,3.11956903]
[1765412897457,3.05,136.1,136.08,3.11956903]
[1765412901355,3.05,136.1,136.08,0.04956903]
[1765412902661,3.05,136.1,136.08,9.73206903]
[1765412902961,9.70825956,136.11,136.08,9.73206903]
[1765412903154,3.09715956,136.11,136.09,6.6118]
[1765412903551,3.09715956,136.11,136.09,9.6818]
[1765412904461,3.09715956,136.11,136.08,9.73206903]
[1765412904660,3.05,136.09,136.08,6.66206903]
[1765412904857,8.71081581,136.09,136.08,0.04956903]
[1765412905063,3.05,136.07,136.04,6.614]
[1765412905652,3.05,136.07,136.04,9.684]
[1765412906157,3.09749906,136.07,136.04,9.73058695]
[1765412908356,3.05,136.06,136.04,0.04658695]
[1765412909070,3.05,136.06,136.04,6.66098695]
[1765412909262,3.05,136.06,136.04,9.73098695]
[1765412910964,3.09749906,136.07,136.04,9.73098695]
[1765412913171,5.66946047,136.06,136.04,9.73098695]
[1765412913359,3.09749906,136.07,136.04,9.73098695]
[1765412913673,3.05,136.05,136.04,0.04658695]
[1765412913867,8.71962545,136.05,136.04,0.04658695]
[1765412914068,15.33362545,136.05,136.04,0.04658695]
[1765412914268,8.71962545,136.05,136.04,0.04658695]
[1765412916473,15.33362545,136.05,136.04,0.04658695]
[1765412918364,3.22,136.02,135.99,3.17]
[1765412918564,8.88962545,136.01,135.99,3.17]
[1765412918764,3.22,136.01,135.99,3.17]
[1765412919469,3.27033042,136.01,135.99,3.21996051]
[1765412920072,9.88653042,136.01,135.99,0.04996051]
[1765412920268,3.22,136.0,135.99,0.04996051]
[1765412921176,0.05033042,136.01,135.99,3.21996051]
[1765412921769,3.27033042,136.01,135.99,3.21996051]
[1765412921970,3.27033042,136.01,135.99,0.04996051]
[1765412922276,9.88653042,136.01,135.99,0.04996051]
[1765412922467,3.22,136.0,135.99,0.04996051]
[1765412924472,9.8364,136.0,135.99,0.04996051]
[1765412925178,3.22,136.0,135.99,0.04996051]
[1765412926276,9.8364,136.0,135.99,0.04996051]
[1765412926678,15.48628667,136.0,135.99,0.04996051]
[1765412927379,9.8364,136.0,135.99,0.04996051]
[1765412928183,3.22,135.98,135.92,3.17]
[1765412929280,0.05017289,135.96,135.94,3.21908118]
[1765412929886,0.05017289,135.96,135.94,9.83798118]
[1765412930283,0.05017289,135.96,135.95,3.17]
[1765412934890,0.05017289,135.96,135.95,9.7888]
[1765412936484,0.05017289,135.96,135.95,3.17]
[1765412938595,0.05017289,135.96,135.95,9.7888]
[1765412940700,0.05017289,135.96,135.94,3.21908118]
[1765412940895,8.8498377,136.02,135.95,3.17]
[1765412941097,3.22,136.02,135.95,3.17]
[1765412941692,3.22,136.03,135.99,3.17]
[1765412942001,0.05014489,136.02,136.0,3.21728113]
[1765412947599,9.80564489,136.02,136.0,3.21728113]
[1765412948296,6.66564489,136.02,136.0,3.21728113]
[1765412949196,0.05014489,136.02,136.0,3.21728113]
[1765412952202,0.05014489,136.02,136.0,9.83348113]
[1765412952504,0.05014489,136.02,136.01,3.14]
[1765412952901,3.29,136.09,136.02,3.14]
[1765412953107,5.65506701,136.08,136.02,3.14]
[1765412953407,3.29,136.09,136.02,3.14]
[1765412953603,5.65548025,136.08,136.02,3.14]
[1765412953805,0.05193023,136.06,136.05,3.14]
[1765412954098,6.77955496,136.11,136.05,3.14]
[1765412954299,5.65582402,136.1,136.05,3.14]
[1765412954502,3.29,136.12,136.05,3.14]
[1765412954702,5.65606791,136.11,136.05,3.14]
[1765412955004,3.29,136.12,136.03,102.8965]
[1765412955005,5.65606791,136.1,136.07,3.14]
[1765412955195,3.29,136.12,136.07,3.14]
[1765412955393,3.29,136.12,136.06,6.6131]
[1765412955394,3.33707914,136.11,136.08,3.19241079]
[1765412959395,0.04707914,136.11,136.08,3.19241079]
[1765412960604,0.04707914,136.11,136.08,9.80471079]
[1765412960805,0.04707914,136.11,136.08,3.19241079]
[1765412961914,0.04707914,136.11,136.1,3.14]
[1765412968827,3.33707914,136.11,136.08,3.19241079]
[1765412969034,3.29,136.1,136.08,3.19241079]
[1765412969218,3.29,136.1,136.08,0.05241079]
[1765412969525,3.29,136.09,136.08,0.05241079]
[1765412970715,9.902,136.09,136.08,0.05241079]
[1765412971236,11.362,136.09,136.08,0.00453469]
[1765412971933,9.902,136.09,136.08,0.00453469]
[1765412981340,15.50394949,136.09,136.08,0.00453469]
[1765412986144,15.50394949,136.09,136.04,3.14]
[1765412986145,3.08,136.06,136.04,3.14]
[1765412986542,3.08,136.09,136.04,3.14]
[1765412986735,8.69271599,136.08,136.04,3.14]
[1765412986934,3.08,136.08,136.04,3.14]
[1765412987244,3.08,136.08,136.05,9.95520473]
[1765412987245,0.0524846,136.07,136.05,9.95520473]
[1765412987546,0.0524846,136.07,136.06,3.29]
[1765412990546,0.0524846,136.07,136.05,3.34130473]
[1765412990745,3.1324846,136.07,136.05,3.34130473]
[1765412991945,9.7456846,136.07,136.05,3.34130473]
[1765412993544,3.08,136.05,135.98,3.29]
[1765412993748,3.08,136.03,135.98,3.29]
[1765412993949,5.62290125,136.02,135.98,3.29]
[1765412994243,5.62290125,136.02,135.95,3.29]
[1765412994244,3.08,136.01,135.95,3.29]
[1765412994451,5.62142369,136.0,135.95,3.29]
[1765412994636,102.9122,136.02,135.96,3.33780012]
[1765412994637,8.75132363,135.99,135.96,3.33780012]
[1765412994836,3.13005002,135.99,135.96,3.33780012]
[1765412995949,0.05005002,135.99,135.96,3.33780012]
[1765413000349,3.13005002,135.99,135.96,3.33780012]
[1765413000552,3.13005002,135.99,135.96,0.04780012]
[1765413000751,3.08,135.97,135.96,0.04780012]
[1765413001749,3.13005002,135.99,135.96,3.33780012]
[1765413003255,3.13005002,135.99,135.96,0.04780012]
[1765413003256,3.08,135.98,135.96,0.04780012]
[1765413003652,3.08,135.96,135.92,3.29]
[1765413004556,0.04707406,135.95,135.94,3.16]
[1765413004764,0.05435066,135.96,135.94,3.16]
[1765413005259,0.05435066,135.96,135.94,9.7791]
[1765413005456,0.05435066,135.96,135.95,3.16]
[1765413005965,3.30435066,135.96,135.93,3.2072759]
[1765413007760,0.05435066,135.96,135.93,9.8268759]
[1765413007973,0.05435066,135.96,135.94,3.16]
[1765413011961,3.19435066,135.96,135.93,3.3072759]
[1765413012154,3.19435066,135.96,135.93,0.0472759]
[1765413012155,2.13202914,135.95,135.93,0.0472759]
[1765413012351,3.14,135.94,135.93,0.0472759]
[1765413014258,5.27202914,135.94,135.93,0.0472759]
[1765413014459,3.14,135.95,135.93,0.0472759]
[1765413015662,9.7589,135.95,135.93,0.0472759]
[1765413015865,5.27202914,135.94,135.93,0.0472759]
[1765413019477,5.27202914,135.94,135.9,65.76]
[1765413019478,5.27202914,135.94,135.88,3.26]
[1765413019679,5.27202914,135.92,135.88,3.26]
[1765413019882,3.14,135.91,135.86,3.26]
[1765413020082,3.14,135.91,135.88,3.26]
[1765413020686,3.1957422,135.91,135.88,3.30638529]
[1765413020878,9.8167422,135.91,135.88,3.30638529]
[1765413021282,6.6214,135.9,135.88,0.04638529]
[1765413021481,9.7614,135.9,135.88,0.04638529]
[1765413022387,3.14,135.9,135.88,0.04638529]
[1765413022978,3.14,135.9,135.88,3.30638529]
[1765413023175,0.0557422,135.91,135.88,3.30638529]
[1765413023378,3.1957422,135.91,135.88,3.30638529]
[1765413024985,3.1957422,135.91,135.88,9.92838529]
[1765413027090,3.1957422,135.91,135.89,6.6217]
[1765413027589,0.0557422,135.91,135.9,9.8813]
[1765413035798,0.0557422,135.91,135.89,3.26]
[1765413036993,0.0557422,135.91,135.88,62.58638529]
[1765413036994,3.2357422,135.91,135.88,62.58638529]
[1765413037393,3.2357422,135.91,135.88,0.04638529]
[1765413037597,3.18,135.89,135.88,0.04638529]
[1765413038398,8.81629139,135.89,135.88,0.04638529]
[1765413039995,5.63629139,135.89,135.88,0.04638529]
[1765413040196,8.81629139,135.89,135.88,0.04638529]
[1765413044202,5.63629139,135.89,135.88,3.30638529]
[1765413044406,3.2357422,135.91,135.88,3.30638529]
[1765413044611,5.64131897,135.9,135.88,3.30638529]
[1765413044812,3.2357422,135.91,135.88,3.30638529]
[1765413045000,5.64131897,135.9,135.88,3.30638529]
[1765413045294,3.2357422,135.91,135.88,3.30638529]
[1765413045497,5.64099248,135.9,135.88,3.30638529]
[1765413045716,3.2357422,135.91,135.88,3.30638529]
[1765413045909,5.64261006,135.9,135.88,3.30638529]
[1765413046094,3.2357422,135.91,135.88,3.30638529]
[1765413046299,5.643183,135.9,135.88,3.30638529]
[1765413046501,3.2357422,135.91,135.88,3.30638529]
[1765413046807,5.64340798,135.9,135.88,3.30638529]
[1765413047008,3.2357422,135.91,135.88,3.30638529]
[1765413047208,5.64253536,135.9,135.89,3.26]
[1765413048108,3.2357422,135.91,135.89,3.26]
[1765413048505,3.2357422,135.91,135.88,6.66858529]
[1765413048803,3.2357422,135.91,135.88,9.92858529]
[1765413049008,3.2357422,135.91,135.89,3.26]
[1765413051807,3.2357422,135.91,135.88,3.30638529]
[1765413053609,3.2357422,135.91,135.88,9.92858529]
[1765413055412,5.65577181,135.9,135.88,9.92858529]
[1765413055611,3.2357422,135.91,135.88,0.04638529]
[1765413055907,3.18,135.89,135.88,0.04638529]
[1765413056110,8.83506583,135.89,135.88,0.04638529]
[1765413056608,15.45686583,135.89,135.88,0.04638529]
[1765413056804,3.18,135.88,135.83,3.26]
[1765413057006,3.18,135.85,135.8,3.26]
[1765413057307,3.33263108,135.86,135.79,62.56]
[1765413057308,3.18,135.83,135.79,65.82]
[1765413057611,3.18,135.81,135.79,62.56]
[1765413057913,3.23205542,135.81,135.79,62.56]
[1765413058303,3.23205542,135.81,135.78,3.26]
[1765413060811,0.05205542,135.81,135.79,3.26]
[1765413061408,0.05205542,135.81,135.79,9.8864]
[1765413061618,0.05205542,135.81,135.8,3.26]
[1765413062415,3.18,135.85,135.82,3.26]
[1765413063309,3.23242507,135.85,135.82,3.31234026]
[1765413065103,3.23242507,135.85,135.82,0.05234026]
[1765413065714,3.26,135.83,135.82,0.05234026]
[1765413065913,8.87284686,135.83,135.82,0.05234026]
[1765413066117,3.26,135.82,135.77,9.9873]
[1765413066314,3.26,135.82,135.78,3.36]
[1765413066922,3.26,135.81,135.77,9.9873]
[1765413067122,3.31120002,135.81,135.77,9.9873]
[1765413067421,3.31120002,135.81,135.77,3.36]
[1765413068122,3.31120002,135.81,135.78,3.36]
[1765413069809,3.31120002,135.81,135.74,165.6759]
[1765413069810,3.31120002,135.81,135.75,6.6282]
[1765413070011,3.37,135.8,135.73,3.05]
[1765413070218,3.41992853,135.78,135.73,3.05]
[1765413070820,3.37,135.77,135.74,3.05]
[1765413071123,3.41992853,135.78,135.74,3.05]
[1765413071318,3.41992853,135.78,135.75,3.05]
[1765413074025,10.04712853,135.78,135.72,3.05]
[1765413074324,3.37,135.77,135.72,3.05]
[1765413075921,3.37,135.76,135.72,9.6799]
[1765413076122,3.37,135.76,135.73,3.05]
[1765413077425,3.41992853,135.78,135.74,3.05]
[1765413077625,3.42436505,135.77,135.74,3.05]
[1765413078328,3.37,135.75,135.68,3.05]
[1765413078525,3.42309754,135.73,135.7,3.05]
[1765413078728,0.05309754,135.73,135.7,3.05]
[1765413079123,3.42309754,135.73,135.7,3.05]
[1765413080022,3.42309754,135.73,135.7,9.681]
[1765413080529,0.05309754,135.73,135.72,3.05]
[1765413080730,3.42309754,135.73,135.71,9.6804]
[1765413080933,3.42309754,135.73,135.69,3.05]
[1765413081321,3.42309754,135.73,135.7,3.05]
[1765413081827,3.42309754,135.73,135.69,3.05]
[1765413082028,3.42309754,135.73,135.68,65.65]
[1765413082733,3.37,135.71,135.68,62.6]
[1765413082933,3.37,135.71,135.68,65.65]
[1765413083235,3.37,135.71,135.68,72.2819]
[1765413084331,3.37,135.71,135.66,9.6826]
[1765413084532,3.42157983,135.7,135.66,3.05]
[1765413085631,3.42157983,135.7,135.67,9.6823]
[1765413088130,3.42157983,135.7,135.67,3.05]
[1765413089030,3.42157983,135.7,135.63,169.15363108]
[1765413089031,0.05157983,135.7,135.68,3.05]
[1765413089835,0.05157983,135.7,135.68,9.6819]
[1765413090035,0.05157983,135.7,135.69,3.05]
[1765413093441,3.37,135.77,135.72,3.05]
[1765413093643,9.01411721,135.76,135.72,3.05]
[1765413093837,3.37,135.74,135.69,3.05]
[1765413094231,0.05566579,135.73,135.7,3.23157983]
[1765413096142,9.84526579,135.73,135.7,3.23157983]
[1765413096342,3.16,135.72,135.7,3.23157983]
[1765413096734,0.05566579,135.73,135.7,3.23157983]
[1765413097344,3.21566579,135.73,135.7,3.23157983]
[1765413097735,0.05566579,135.73,135.7,3.23157983]
[1765413098632,0.05566579,135.73,135.71,3.18]
[1765413099231,3.21566579,135.73,135.7,0.05157983]
[1765413101041,9.7901,135.72,135.7,0.05157983]
[1765413101239,6.6301,135.72,135.7,3.23157983]
[1765413104547,0.05566579,135.73,135.72,3.18]
[1765413105938,0.05566579,135.73,135.72,9.8101]
[1765413107947,0.05566579,135.73,135.72,11.9495284]
[1765413108841,0.05566579,135.73,135.72,9.8101]
[1765413111145,3.16,135.77,135.73,3.18]
[1765413111947,5.611658,135.76,135.73,3.18]
[1765413112146,3.16,135.77,135.73,3.18]
[1765413112348,0.05520281,135.76,135.73,3.23533868]
[1765413112948,0.05520281,135.76,135.74,6.6291]
[1765413113149,0.05520281,135.76,135.73,3.23533868]
[1765413113349,0.05520281,135.76,135.75,6.6286]
[1765413113546,0.05520281,135.76,135.75,9.8086]
[1765413113841,3.21520281,135.76,135.73,3.23533868]
[1765413114854,0.05520281,135.76,135.74,6.629]
[1765413115055,0.05520281,135.76,135.74,9.809]
[1765413115956,0.05520281,135.76,135.74,3.18]
[1765413117552,3.21520281,135.76,135.73,9.86493868]
[1765413117951,3.16,135.74,135.73,0.05533868]
[1765413118157,14.22809102,135.74,135.73,0.05533868]
[1765413118856,3.16,135.74,135.73,0.05533868]
[1765413119950,0.05520281,135.76,135.73,3.23533868]
[1765413120258,5.59655362,135.75,135.73,3.23533868]
[1765413120458,3.21520281,135.76,135.73,3.23533868]
[1765413120660,5.59642738,135.75,135.73,3.23533868]
[1765413120867,3.21520281,135.76,135.73,3.23533868]
[1765413121764,0.05520281,135.76,135.73,3.23533868]
[1765413121964,3.21520281,135.76,135.73,3.23533868]
[1765413124872,0.05520281,135.76,135.74,2.1394284]
[1765413125176,12.25634466,135.82,135.75,3.12]
[1765413125371,11.0745123,135.81,135.75,3.12]
[1765413125572,11.0745123,135.8,135.75,3.12]
[1765413125775,5.59771109,135.79,135.75,3.12]
[1765413125972,6.6261,135.81,135.78,3.12]
[1765413126172,0.05034386,135.81,135.78,3.17448145]
[1765413126872,0.05034386,135.81,135.78,9.80158145]
[1765413127476,11.10027387,135.8,135.78,0.05448145]
[1765413127678,5.5094284,135.8,135.78,0.05448145]
[1765413128076,3.37,135.8,135.78,0.05448145]
[1765413129772,3.42034386,135.81,135.78,9.80158145]
[1765413131770,3.42034386,135.81,135.79,6.6266]
[1765413131975,0.05034386,135.81,135.79,9.8666]
[1765413132872,0.05034386,135.81,135.8,9.8661]
[1765413135890,0.05034386,135.81,135.8,3.24]
[1765413136081,0.05034386,135.81,135.79,5.3794284]
[1765413136788,0.05034386,135.81,135.8,3.24]
[1765413137792,0.05034386,135.81,135.8,9.8661]
[1765413138388,0.05034386,135.81,135.8,3.24]
[1765413139687,0.05034386,135.81,135.79,9.8665]
[1765413140285,3.25034386,135.81,135.78,0.05448145]
[1765413141889,3.2,135.8,135.78,0.05448145]
[1765413146492,3.2,135.8,135.78,6.68158145]
[1765413148193,3.2,135.8,135.79,6.6266]
[1765413148397,0.05034386,135.81,135.78,3.29448145]
[1765413148595,3.25034386,135.81,135.78,3.29448145]
[1765413149690,3.25034386,135.81,135.8,6.6261]
[1765413151801,3.25034386,135.81,135.79,6.6266]
[1765413152002,3.2,135.8,135.78,0.05448145]
[1765413154794,3.27,135.78,135.7,3.06]
[1765413154995,3.27,135.75,135.71,3.06]
[1765413156011,3.27,135.73,135.72,0.05306659]
[1765413156299,2.19085904,135.74,135.72,0.05306659]
[1765413156300,0.05143064,135.74,135.72,9.74296659]
[1765413156502,0.05143064,135.74,135.73,3.06]
[1765413157495,3.27,135.78,135.73,3.06]
[1765413157695,3.27,135.79,135.75,3.06]
[1765413158497,3.27,135.79,135.76,0.05079722]
[1765413158700,6.6265,135.8,135.76,0.05079722]
[1765413158701,3.32062425,135.78,135.76,0.05079722]
[1765413161411,0.05062425,135.78,135.76,3.11079722]
[1765413162911,0.05062425,135.78,135.76,9.73879722]
[1765413164812,0.05062425,135.78,135.77,3.06]
[1765413166614,0.05062425,135.78,135.76,9.73879722]
[1765413166810,0.05062425,135.78,135.77,3.06]
[1765413168715,0.05062425,135.78,135.76,9.73879722]
[1765413172021,0.05062425,135.78,135.76,3.11079722]
[1765413173307,0.05062425,135.78,135.77,3.06]
[1765413177322,3.32062425,135.78,135.76,0.05079722]
[1765413177718,0.05062425,135.78,135.76,3.11079722]
[1765413179019,6.67782425,135.78,135.76,3.11079722]
[1765413179529,9.94782425,135.78,135.76,0.05079722]
[1765413180430,6.67782425,135.78,135.76,3.11079722]
[1765413180726,9.94782425,135.78,135.76,3.11079722]
[1765413180924,3.27,135.76,135.72,3.06]
[1765413181124,3.27,135.74,135.69,3.06]
[1765413181919,0.05413264,135.73,135.71,3.06]
[1765413184425,0.05413264,135.73,135.7,3.12229597]
[1765413184426,3.27413264,135.73,135.7,3.12229597]
[1765413184728,9.90383264,135.73,135.7,3.12229597]
[1765413184931,3.22,135.72,135.7,3.12229597]
[1765413185124,3.22,135.72,135.7,0.05229597]
[1765413188532,8.90492601,135.71,135.7,0.05229597]
[1765413189031,3.22,135.7,135.67,6.6321]
[1765413189229,3.22,135.7,135.67,9.7021]
[1765413189424,3.22,135.7,135.64,165.8121]
[1765413189425,3.22,135.7,135.65,9.7031]
[1765413190034,3.26638411,135.69,135.66,9.74954194]
[1765413191228,3.26638411,135.69,135.66,0.04664194]
[1765413191428,3.38749834,135.69,135.66,0.04664194]
[1765413191633,3.16,135.68,135.66,0.04664194]
[1765413192934,3.16,135.67,135.66,0.04664194]
[1765413194233,3.16,135.65,135.58,3.33]
[1765413194440,6.50111423,135.65,135.58,3.33]
[1765413194932,3.16,135.65,135.59,3.33]
[1765413195334,0.05644328,135.63,135.59,3.33]
[1765413195827,3.16,135.62,135.59,3.33]
[1765413197931,6.69104328,135.63,135.59,3.33]
[1765413198237,3.21644328,135.63,135.6,3.33]
[1765413198428,0.05644328,135.63,135.6,3.33]
[1765413199033,6.69104328,135.63,135.6,3.33]
[1765413199229,3.16,135.62,135.55,3.33]
[1765413199427,0.05349563,135.6,135.55,3.33]
[1765413199622,0.05349563,135.6,135.58,3.33]
[1765413202736,0.05349563,135.6,135.59,3.33]
[1765413203034,0.05349563,135.6,135.55,62.66]
[1765413203236,3.21349563,135.6,135.54,3.70212009]
[1765413203439,3.21349563,135.6,135.55,3.33]
[1765413204030,3.16,135.59,135.55,6.6383]
[1765413204241,3.16,135.59,135.55,3.33]
[1765413204842,9.797,135.58,135.55,3.33]
[1765413205243,3.16,135.58,135.55,3.33]
[1765413206143,0.05349563,135.6,135.56,3.33]
[1765413207053,0.05349563,135.6,135.58,3.33]
[1765413207942,3.16,135.59,135.56,3.33]
[1765413208138,3.16,135.59,135.54,7.03212009]
[1765413208347,3.16,135.59,135.55,3.33]
[1765413208946,9.7965,135.59,135.56,3.33]
[1765413209850,3.16,135.58,135.55,9.9683]
[1765413210754,3.16,135.58,135.54,7.03212009]
[1765413211648,3.16,135.58,135.54,13.67092009]
[1765413213055,3.16,135.59,135.55,3.33]
[1765413213447,9.797,135.58,135.55,3.33]
[1765413213848,9.7979,135.56,135.54,3.70212009]
[1765413214047,9.84678672,135.56,135.54,3.70212009]
[1765413214851,3.05,135.54,135.45,103.3373]
[1765413215053,0.04708349,135.51,135.45,3.32]
[1765413215443,0.04708349,135.51,135.47,3.32]
[1765413215654,0.04708349,135.51,135.47,106.6448]
[1765413215853,0.04708349,135.51,135.48,3.32]
[1765413216454,69.09111423,135.57,135.49,3.32]
[1765413216654,5.19501128,135.57,135.51,3.32]
[1765413217453,0.04993235,135.55,135.53,0.05448557]
[1765413217847,0.04993235,135.55,135.53,3.37448557]
[1765413219353,3.09993235,135.55,135.53,0.05448557]
[1765413219862,0.04993235,135.55,135.53,3.37448557]
[1765413221146,3.09993235,135.55,135.53,0.05448557]
[1765413221444,5.19501128,135.54,135.53,0.05448557]
[1765413222147,10.78936222,135.54,135.53,0.05448557]
[1765413222345,16.36591012,135.54,135.53,0.05448557]
[1765413222545,10.78936222,135.54,135.53,0.05448557]
[1765413222955,8.64435094,135.54,135.53,0.05448557]
[1765413223264,5.24494363,135.55,135.53,0.05448557]
[1765413223558,0.04993235,135.55,135.53,3.37448557]
[1765413225762,3.09993235,135.55,135.53,0.05448557]
[1765413225962,10.68368013,135.54,135.41,103.3669]
[1765413226265,3.05,135.51,135.44,3.32]
[1765413226450,2.14501128,135.5,135.47,3.32]
[1765413226647,2.14501128,135.53,135.47,3.32]
[1765413226867,5.19501128,135.55,135.49,3.32]
[1765413227066,5.24973848,135.53,135.49,3.32]
[1765413227362,2.14501128,135.51,135.45,3.32]
[1765413227554,0.05056651,135.49,135.46,3.32]
[1765413227750,3.10056651,135.49,135.46,3.32]
[1765413228157,9.74206651,135.49,135.46,3.32]
[1765413228548,6.69206651,135.49,135.46,3.32]
[1765413228961,6.6419,135.48,135.44,3.32]
[1765413229462,6.6424,135.47,135.44,3.32]
[1765413229653,5.24557779,135.49,135.44,3.32]
[1765413229857,5.24557779,135.49,135.45,3.32]
[1765413229858,0.05056651,135.49,135.45,3.32]
[1765413230451,0.05056651,135.49,135.47,3.32]
[1765413230767,3.05,135.55,135.49,3.32]
[1765413231362,3.05,135.55,135.49,9.9609]
[1765413231670,0.04656497,135.53,135.51,0.05282692]
[1765413232558,3.09656497,135.53,135.51,0.05282692]
[1765413232964,14.12765206,135.52,135.51,0.05282692]
[1765413233268,3.05,135.51,135.45,3.32]
[1765413233467,8.64565807,135.5,135.45,3.32]
[1765413233669,3.05,135.51,135.47,3.32]
[1765413233868,5.59838481,135.5,135.47,3.32]
[1765413234063,3.05,135.51,135.47,3.32]
[1765413234370,5.64660772,135.5,135.47,3.32]
[1765413234665,0.04822291,135.5,135.47,3.32]
[1765413235968,0.04822291,135.5,135.48,6.6417]
[1765413236169,0.04822291,135.5,135.49,3.32]
[1765413238771,0.04822291,135.5,135.48,9.9617]
[1765413239175,0.04822291,135.5,135.48,3.32]
[1765413239472,3.09822291,135.5,135.46,9.9623]
[1765413239672,3.09822291,135.5,135.47,3.32]
[1765413239871,0.04822291,135.5,135.47,3.32]
[1765413240472,3.09822291,135.5,135.47,3.32]
[1765413240675,3.09822291,135.5,135.44,3.32]
[1765413240870,3.05,135.48,135.44,3.32]
[1765413241176,9.6923,135.47,135.44,3.32]
[1765413241371,0.04815905,135.47,135.44,3.32]
[1765413242073,0.04815905,135.47,135.44,9.9637]
[1765413242669,0.04815905,135.47,135.46,3.32]
[1765413244479,0.04815905,135.47,135.43,9.7239]
[1765413244670,3.10815905,135.47,135.4,3.08]
[1765413244872,3.10815905,135.47,135.41,3.08]
[1765413245070,9.75055905,135.47,135.41,3.08]
[1765413245684,0.04815905,135.47,135.44,9.7236]
[1765413245982,0.04815905,135.47,135.44,3.08]
[1765413246274,0.04815905,135.47,135.44,9.7237]
[1765413246876,0.04815905,135.47,135.45,3.08]
[1765413247279,3.06,135.46,135.42,9.7244]
[1765413247579,3.06,135.46,135.43,3.08]
[1765413247878,3.06,135.52,135.44,3.08]
[1765413248072,14.13109032,135.51,135.44,3.08]
[1765413248279,3.06,135.51,135.44,3.08]
[1765413248478,6.6409,135.5,135.46,9.7227]
[1765413248780,0.0558332,135.49,135.47,3.12815905]
[1765413252980,3.1658332,135.49,135.47,0.04815905]
[1765413253390,0.0558332,135.49,135.47,3.41815905]
[1765413254593,3.1658332,135.49,135.47,0.04815905]
[1765413254885,5.25683753,135.48,135.47,0.04815905]
[1765413255393,6.73683753,135.48,135.47,0.04815905]
[1765413255594,5.25683753,135.48,135.47,0.04815905]
[1765413256285,6.73683753,135.48,135.47,0.04815905]
[1765413256787,4.59,135.48,135.47,0.04815905]
[1765413258083,3.11,135.48,135.47,0.04815905]
[1765413258486,6.6971332,135.49,135.47,3.41815905]
[1765413258789,0.0558332,135.49,135.47,3.41815905]
[1765413262192,3.1658332,135.49,135.47,0.04815905]
[1765413262493,0.0558332,135.49,135.47,3.41815905]
[1765413262878,9.8072332,135.49,135.47,0.04815905]
[1765413263187,3.11,135.48,135.47,0.04815905]